Workbook

Sheet NSU
B1: Tiia Ahvenniemi | E1: 20.5.1993 Lappajärvi
B2: SUPERPESIS | E2: RUNKOSARJA | I2: Kärkilyönnit (KL), pesänvälit | P2: Ylempi loppusarja | U2: Alempi loppusarja | AB2: Arvo-ottelut ja mitalit
B3: Vuosi | C3: Sija | D3: Seura | E3: OTT | F3: KUN | G3: LÖI | H3: TOI | I3: KL | J3: 0 > 1 | K3: 1 > 2 | L3: 2 > 3 | M3: 3 > k | N3: KL-% | P3: OTT | Q3: KUN | R3: LÖI | S3: TOI | T3: KL | U3: OTT | V3: KUN | W3: LÖI | X3: TOI | Y3: KL | Z3: IL | AA3: LL | AB3: Halli | AC3: K | AD3: H | AE3: P
B4: 2006 | C4: 7. | D4: LaVe | F4: suomensarja
B5: 2007
B6: 2008
B7: 2009 | C7: 13. | D7: Virkiä | F7: tyttöjen superpesis
B8: 2010 | C8: 2. | D8: Virkiä 2 | F8: ykköspesis | O8: 0
B9: 2011 | C9: 2. | D9: Virkiä 2 | F9: ykköspesis | O9: 0
B10: 2012 | C10: 7. | D10: Virkiä 2 | F10: ykköspesis | O10: 0
B11: 2013 | C11: 2. | D11: Pesäkarhut 2 | F11: suomensarja
B12: 2014 | C12: 3. | D12: Pesäkarhut | E12: 24 | F12: 0 | G12: 6 | H12: 0 | I12: 61 | J12: 38 | K12: 9 | L12: 8 | M12: 6 | N12: 50.4 % | O12: =PRODUCT(I12/N12) -> 121.031746 | P12: 9 | Q12: 0 | R12: 0 | S12: 0 | T12: 14 | AE12: 1
B13: 2015 | C13: 6. | D13: LaVe | F13: ykköspesis | O13: 0
B14: Yhteensä | E14: =SUM(E4:E13) -> 24 | F14: 0 | G14: 6 | H14: 0 | I14: 61 | J14: 38 | K14: 9 | L14: 8 | M14: 6 | N14: =PRODUCT(I14/O14) -> 50.4 % | O14: =SUM(O4:O13) -> 121.031746 | P14: 9 | Q14: 0 | R14: 0 | S14: 0 | T14: 14 | U14: 0 | V14: 0 | W14: 0 | X14: 0 | Y14: 0 | Z14: 0 | AA14: 0 | AB14: 0 | AC14: 0 | AD14: 0 | AE14: 1
B15: Pesispörssi | D15: 57.3
B17: URA SUPERISSA | E17: OTT | F17: KUN | G17: LÖI | H17: TOI | I17: KL | K17: ka/L | L17: ka/T | M17: ka/KL | N17: K - % | P17: ENSIMMÄISET
B18: Runkosarja | E18: =PRODUCT(E14) -> 24 | F18: =PRODUCT(F14) -> 0 | G18: =PRODUCT(G14) -> 6 | H18: =PRODUCT(H14) -> 0 | I18: =PRODUCT(I14) -> 61 | K18: =PRODUCT((F18+G18)/E18) -> 0.25 | L18: =PRODUCT(H18/E18) -> 0.00 | M18: =PRODUCT(I18/E18) -> 2.54 | N18: =PRODUCT(N14) -> 50.4 % | O18: =PRODUCT(O14) -> 121.031746 | P18: Ottelu | R18: 15.05. 2014 ViPa - Pesäkarhut 0-2 (0-3, 2-10) | AA18: 1. ottelu | AC18: 20 v 11 kk 25 pv
B19: Ylempi loppusarja | E19: =SUM(P14) -> 9 | F19: =SUM(Q14) -> 0 | G19: =SUM(R14) -> 0 | H19: =SUM(S14) -> 0 | I19: =SUM(T14) -> 14 | K19: =PRODUCT((F19+G19)/E19) -> 0.00 | L19: =PRODUCT(H19/E19) -> 0.00 | M19: =PRODUCT(I19/E19) -> 1.56 | N19: =PRODUCT(I19/O19) -> 31.8 % | O19: 44 | P19: Lyöty | R19: 18.05. 2014 Pesäkarhut - Pesä Ysit 2-0 (3-0, 3-0) | AA19: 2. ottelu | AC19: 20 v 11 kk 28 pv
B20: Alempi loppusarja | P20: Tuotu
B21: KAIKKI | E21: =SUM(E18:E20) -> 33 | F21: =SUM(F18:F20) -> 0 | G21: =SUM(G18:G20) -> 6 | H21: =SUM(H18:H20) -> 0 | I21: =SUM(I18:I20) -> 75 | K21: =PRODUCT((F21+G21)/E21) -> 0.18 | L21: =PRODUCT(H21/E21) -> 0.00 | M21: =PRODUCT(I21/E21) -> 2.27 | N21: =PRODUCT(I21/O21) -> 45.4 % | O21: =SUM(O18:O20) -> 165.031746 | P21: Kunnari
B23: Tyttölukkari 2010, 2011
B25: Seurat | D25: LaVe = Lappajärven Veikot (1911), kasvattajaseura
D26: Virkiä = Lapuan Virkiä (1907)
D27: Pesäkarhut (1985)

Sheet NYP,NSS
B1: Tiia Ahvenniemi | E1: 20.5.1993 Lappajärvi
B2: YKKÖSPESIS | E2: Runkosarja | L2: Runkosarja TOP-10 | Q2: Jatkosarjat | X2: SUOMENSARJA | AA2: Runkosarja | AH2: Runkosarja TOP-10 | AM2: Jatkosarjat
B3: Vuosi | C3: Sija | D3: Seura | E3: OTT | F3: KUN | G3: LÖI | H3: TOI | I3: KL | J3: KL-% | L3: LÖI | M3: TOI | N3: L+T | O3: KL | Q3: OTT | R3: KUN | S3: LÖI | T3: TOI | U3: KL | V3: KL-% | X3: Vuosi | Y3: Sija | Z3: Seura | AA3: OTT | AB3: KUN | AC3: LÖI | AD3: TOI | AE3: KL | AF3: KL-% | AH3: LÖI | AI3: TOI | AJ3: L+T | AK3: KL | AM3: OTT | AN3: KUN | AO3: LÖI | AP3: TOI | AQ3: KL | AR3: KL-%
X4: 2006 | Y4: 7. | Z4: LaVe | AA4: 5 | AB4: 0 | AC4: 0 | AD4: 2 | AE4: 3 | AF4: 50.0 % | AG4: 6
B6: 2010 | C6: 2. | D6: Virkiä 2 | E6: 12 | F6: 2 | G6: 23 | H6: 8 | I6: 63 | J6: 74.1 % | K6: 85 | L6: 3. | N6: 7. | O6: 6.
B7: 2011 | C7: 2. | D7: Virkiä 2 | E7: 11 | F7: 1 | G7: 29 | H7: 14 | I7: 76 | J7: 71.7 % | K7: 106 | L7: 2. | N7: 7. | O7: 3. | Q7: 4 | R7: 1 | S7: 8 | T7: 3 | U7: 22 | V7: 59.5 % | W7: 37
B8: 2012 | C8: 7. | D8: Virkiä 2 | E8: 11 | F8: 0 | G8: 11 | H8: 3 | I8: 38 | J8: 56.7 % | K8: 67
X9: 2013 | Y9: 2. | Z9: Pesäkarhut 2 | AA9: 16 | AB9: 2 | AC9: 37 | AD9: 18 | AE9: 89 | AF9: 73.6 % | AG9: 121 | AH9: 3. | AJ9: 2. | AK9: 4. | AM9: 6 | AN9: 0 | AO9: 13 | AP9: 0 | AQ9: 28 | AR9: 66.7 % | AS9: 42
B10: 2015 | C10: 6. | D10: LaVe | E10: 15 | F10: 0 | G10: 5 | H10: 3 | I10: 46 | J10: 56.8 % | K10: 81
B13: YHTEENSÄ | E13: =SUM(E4:E12) -> 49 | F13: =SUM(F4:F12) -> 3 | G13: =SUM(G4:G12) -> 68 | H13: =SUM(H4:H12) -> 28 | I13: =SUM(I4:I12) -> 223 | J13: =PRODUCT(I13/K13) -> 65.8 % | K13: =SUM(K4:K12) -> 339 | Q13: =SUM(Q4:Q12) -> 4 | R13: =SUM(R4:R12) -> 1 | S13: =SUM(S4:S12) -> 8 | T13: =SUM(T4:T12) -> 3 | U13: =SUM(U4:U12) -> 22 | V13: =PRODUCT(U13/W13) -> 59.5 % | W13: =SUM(W4:W12) -> 37 | X13: YHTEENSÄ | AA13: =SUM(AA4:AA12) -> 21 | AB13: =SUM(AB4:AB12) -> 2 | AC13: =SUM(AC4:AC12) -> 37 | AD13: =SUM(AD4:AD12) -> 20 | AE13: =SUM(AE4:AE12) -> 92 | AF13: =PRODUCT(AE13/AG13) -> 72.4 % | AG13: =SUM(AG4:AG12) -> 127 | AM13: =SUM(AM4:AM12) -> 6 | AN13: =SUM(AN4:AN12) -> 0 | AO13: =SUM(AO4:AO12) -> 13 | AP13: =SUM(AP4:AP12) -> 0 | AQ13: =SUM(AQ4:AQ12) -> 28 | AR13: =PRODUCT(AQ13/AS13) -> 66.7 % | AS13: =SUM(AS4:AS12) -> 42
B15: KAIKKI OTTELUT | E15: OTT | F15: KUN | G15: LÖI | H15: TOI | I15: KL | J15: KL-% | L15: ka/L | M15: ka/T | N15: ka/l+t | O15: ka/kl | R15: Seurat | T15: LaVe = Lappajärven Veikot (1911), kasvattajaseura
B16: SUPERPESIS | E16: 33 | F16: 0 | G16: 6 | H16: 0 | I16: 75 | J16: 45.4 % | K16: =PRODUCT(I16/J16) -> 165.1982379 | L16: =PRODUCT((F16+G16)/E16) -> 0.18 | M16: =PRODUCT(H16/E16) -> 0.00 | N16: =PRODUCT((F16+G16+H16)/E16) -> 0.18 | O16: =PRODUCT(I16/E16) -> 2.27 | T16: Virkiä = Lapuan Virkiä (1907)
B17: YKKÖSPESIS | E17: =PRODUCT(E13+Q13) -> 53 | F17: =PRODUCT(F13+R13) -> 4 | G17: =PRODUCT(G13+S13) -> 76 | H17: =PRODUCT(H13+T13) -> 31 | I17: =PRODUCT(I13+U13) -> 245 | J17: =PRODUCT(I17/K17) -> 65.2 % | K17: =PRODUCT(K13+W13) -> 376 | L17: =PRODUCT((F17+G17)/E17) -> 1.51 | M17: =PRODUCT(H17/E17) -> 0.58 | N17: =PRODUCT((F17+G17+H17)/E17) -> 2.09 | O17: =PRODUCT(I17/E17) -> 4.62 | T17: Pesäkarhut = Pesäkarhut, Pori (1985)
B18: SUOMENSARJA | E18: =PRODUCT(AA13+AM13) -> 27 | F18: =PRODUCT(AB13+AN13) -> 2 | G18: =PRODUCT(AC13+AO13) -> 50 | H18: =PRODUCT(AD13+AP13) -> 20 | I18: =PRODUCT(AE13+AQ13) -> 120 | J18: =PRODUCT(I18/K18) -> 71.0 % | K18: =PRODUCT(AG13+AS13) -> 169 | L18: =PRODUCT((F18+G18)/E18) -> 1.93 | M18: =PRODUCT(H18/E18) -> 0.74 | N18: =PRODUCT((F18+G18+H18)/E18) -> 2.67 | O18: =PRODUCT(I18/E18) -> 4.44
B19: YHTEENSÄ | E19: =SUM(E16:E18) -> 113 | F19: =SUM(F16:F18) -> 6 | G19: 132 | H19: 51 | I19: 440 | J19: =PRODUCT(I19/K19) -> 62.0 % | K19: =SUM(K16:K18) -> 710.1982379 | L19: =PRODUCT((F19+G19)/E19) -> 1.22 | M19: =PRODUCT(H19/E19) -> 0.45 | N19: =PRODUCT((F19+G19+H19)/E19) -> 1.67 | O19: =PRODUCT(I19/E19) -> 3.89

Sheet Arvo-ottelut
B1: ITÄ - LÄNSI - KORTTI
B2: Tiia Ahvenniemi | C2: 20.5.1993 Lappajärvi
B3: B-TYTÖT | C3: Itä - Länsi, tulos | D3: Joukkue | E3: Seura | G3: V | H3: T | I3: H | J3: Up. | K3: Lj. | L3: Palk. | M3: O | N3: K | O3: L | P3: T | Q3: KL | R3: 1 | S3: 2 | T3: 3 | U3: k | V3: KL-% | W3: Pelinjohtaja | X3: Yleisöä
B4: 23.07. 2011 Kouvola | C4: 0-2 (0-5, 6-14) | D4: Länsi | E4: Virkiä | G4: 1 | J4: L | K4: 5 | L4: I p | M4: 1 | O4: 1 | P4: 1 | Q4: 4/8 | R4: 1/1 | S4: 1/2 | T4: 1/3 | U4: 1/2 | V4: 50.0 % | W4: Mika Takalahti | X4: 1016
B5: 21.07. 2012 Sotkamo | C5: 0-2 (2-8, 2-4) | D5: Länsi | E5: Virkiä | G5: 1 | J5: L | K5: 5 | L5: II p | M5: 1 | O5: 2 | Q5: 3/5 | T5: 0/2 | U5: 3/3 | V5: 60.0 % | W5: Vesa Puutonen | X5: 1909
B6: Yhteensä | G6: 2 | M6: 2 | O6: 3 | P6: 1 | Q6: 7/13 | R6: 1/1 | S6: 1/2 | T6: 1/5 | U6: 4/5 | V6: 53,8%
